[Event "Titled Tuesday Blitz February 15 Early 2022"]
[White "Pichot, Alan"]
[Black "Ljukin, Sergei"]
[WhiteFideId "110973"]
[BlackFideId "14102200"]
[WhiteElo "2543"]
[BlackElo "2312"]
[Result "1-0"]
[Round "01"]
[TimeControl "180+1"]
[Date "2022.02.15"]
[WhiteClock "0:00:05"]
[BlackClock "0:00:01"]

1. e4 {[%clk 0:03:00]}  e6 {[%clk 0:02:59]} 2. d4 {[%clk 0:02:57]}  d5 {[%clk 0:03:00]} 3. Nc3 {[%clk 0:02:58]}  Bb4 {[%clk 0:02:59]} 4. e5 {[%clk 0:02:58]}  Ne7 {[%clk 0:02:59]} 5. a3 {[%clk 0:02:57]}  Bxc3+ {[%clk 0:02:59]} 6. bxc3 {[%clk 0:02:58]}  c5 {[%clk 0:03:00]} 7. Qg4 {[%clk 0:02:55]}  Qc7 {[%clk 0:02:59]} 8. Qxg7 {[%clk 0:02:54]}  Rg8 {[%clk 0:03:00]} 9. Qxh7 {[%clk 0:02:54]}  cxd4 {[%clk 0:03:00]} 10. Qd3 {[%clk 0:02:55]}  Qxe5+ {[%clk 0:03:00]} 11. Ne2 {[%clk 0:02:54]}  dxc3 {[%clk 0:03:00]} 12. Bf4 {[%clk 0:02:54]}  Qf6 {[%clk 0:02:57]} 13. h4 {[%clk 0:02:54]}  Nbc6 {[%clk 0:02:53]} 14. Qxc3 {[%clk 0:02:53]}  e5 {[%clk 0:02:53]} 15. Bg5 {[%clk 0:02:53]}  Qe6 {[%clk 0:02:50]} 16. Ng3 {[%clk 0:02:42]}  f6 {[%clk 0:02:48]} 17. Bd2 {[%clk 0:02:39]}  Bd7 {[%clk 0:02:39]} 18. Be2 {[%clk 0:02:28]}  Nf5 {[%clk 0:02:37]} 19. Nxf5 {[%clk 0:01:14]}  Qxf5 {[%clk 0:02:37]} 20. g4 {[%clk 0:01:14]}  Qe6 {[%clk 0:02:35]} 21. f3 {[%clk 0:00:55]}  Nd4 {[%clk 0:02:31]} 22. Bd1 {[%clk 0:00:55]}  Rc8 {[%clk 0:02:22]} 23. Qb2 {[%clk 0:00:53]}  Rxc2 {[%clk 0:01:58]} 24. Bxc2 {[%clk 0:00:52]}  Nxf3+ {[%clk 0:01:58]} 25. Kd1 {[%clk 0:00:51]}  Qxg4 {[%clk 0:01:58]} 26. Qb4 {[%clk 0:00:41]}  Qg2 {[%clk 0:01:51]} 27. Re1 {[%clk 0:00:37]}  Nxe1 {[%clk 0:01:44]} 28. Bxe1 {[%clk 0:00:38]}  Rg4 {[%clk 0:01:21]} 29. Qd6 {[%clk 0:00:25]}  Rc4 {[%clk 0:01:16]} 30. Ra2 {[%clk 0:00:22]}  Qg4+ {[%clk 0:00:36]} 31. Kc1 {[%clk 0:00:21]}  Qe6 {[%clk 0:00:31]} 32. Qxe6+ {[%clk 0:00:16]}  Bxe6 {[%clk 0:00:30]} 33. h5 {[%clk 0:00:17]}  e4 {[%clk 0:00:24]} 34. Rb2 {[%clk 0:00:07]}  b6 {[%clk 0:00:23]} 35. Rb4 {[%clk 0:00:07]}  Rc8 {[%clk 0:00:20]} 36. Kb2 {[%clk 0:00:06]}  Kf7 {[%clk 0:00:19]} 37. Bc3 {[%clk 0:00:06]}  Bf5 {[%clk 0:00:19]} 38. a4 {[%clk 0:00:03]}  Bg4 {[%clk 0:00:16]} 39. h6 {[%clk 0:00:02]}  Kg6 {[%clk 0:00:16]} 40. a5 {[%clk 0:00:03]}  Kxh6 {[%clk 0:00:15]} 41. axb6 {[%clk 0:00:03]}  axb6 {[%clk 0:00:15]} 42. Rxb6 {[%clk 0:00:04]}  Kg5 {[%clk 0:00:15]} 43. Bxf6+ {[%clk 0:00:03]}  Kf5 {[%clk 0:00:15]} 44. Bd4 {[%clk 0:00:04]}  Bf3 {[%clk 0:00:14]} 45. Bb3 {[%clk 0:00:04]}  Rd8 {[%clk 0:00:12]} 46. Kc3 {[%clk 0:00:04]}  Be2 {[%clk 0:00:08]} 47. Kd2 {[%clk 0:00:04]}  Bc4 {[%clk 0:00:06]} 48. Bxc4 {[%clk 0:00:03]}  dxc4 {[%clk 0:00:06]} 49. Ke3 {[%clk 0:00:04]}  Rc8 {[%clk 0:00:06]} 50. Rf6+ {[%clk 0:00:03]}  Kg5 {[%clk 0:00:06]} 51. Rf1 {[%clk 0:00:01]}  c3 {[%clk 0:00:06]} 52. Kxe4 {[%clk 0:00:02]}  c2 {[%clk 0:00:06]} 53. Rc1 {[%clk 0:00:02]}  Kg4 {[%clk 0:00:06]} 54. Kd3 {[%clk 0:00:03]}  Kf3 {[%clk 0:00:07]} 55. Bc3 {[%clk 0:00:04]}  Rd8+ {[%clk 0:00:06]} 56. Kxc2 {[%clk 0:00:04]}  Rc8 {[%clk 0:00:07]} 57. Kd3 {[%clk 0:00:04]}  Rd8+ {[%clk 0:00:07]} 58. Bd4 {[%clk 0:00:05]}  Kf4 {[%clk 0:00:07]} 59. Rf1+ {[%clk 0:00:05]}  Kg4 {[%clk 0:00:07]} 60. Ke4 {[%clk 0:00:06]}  Ra8 {[%clk 0:00:06]} 61. Rg1+ {[%clk 0:00:05]}  Kh5 {[%clk 0:00:06]} 62. Kf5 {[%clk 0:00:05]}  Ra5+ {[%clk 0:00:03]} 63. Be5 {[%clk 0:00:05]}  Ra4 {[%clk 0:00:01]} 64. Rg8 {[%clk 0:00:05]} 1-0


[Site "https://www.chess.com"]

[Event "Titled Tuesday Blitz February 15 Early 2022"]
[White "Pinheiro, Iung Alicio de O."]
[Black "Ovezdurdyyeva, Jemal"]
[WhiteFideId "2104350"]
[BlackFideId "14001888"]
[WhiteElo "2654"]
[BlackElo "1946"]
[Result "1-0"]
[Round "01"]
[TimeControl "180+1"]
[Date "2022.02.15"]
[WhiteClock "0:00:21"]
[BlackClock "0:00:10"]

1. e4 {[%clk 0:03:00]}  d6 {[%clk 0:02:57]} 2. d4 {[%clk 0:03:00]}  Nf6 {[%clk 0:02:57]} 3. Nc3 {[%clk 0:03:00]}  g6 {[%clk 0:02:56]} 4. Be3 {[%clk 0:02:58]}  c6 {[%clk 0:02:54]} 5. Qd2 {[%clk 0:02:58]}  h5 {[%clk 0:02:52]} 6. h3 {[%clk 0:02:29]}  b5 {[%clk 0:02:49]} 7. Bd3 {[%clk 0:02:27]}  b4 {[%clk 0:02:47]} 8. Nce2 {[%clk 0:02:27]}  a5 {[%clk 0:02:47]} 9. Nf3 {[%clk 0:02:26]}  Bg7 {[%clk 0:02:39]} 10. a3 {[%clk 0:02:22]}  bxa3 {[%clk 0:02:16]} 11. Rxa3 {[%clk 0:02:19]}  Qb6 {[%clk 0:02:16]} 12. c3 {[%clk 0:02:17]}  Ba6 {[%clk 0:02:09]} 13. O-O {[%clk 0:01:45]}  Bxd3 {[%clk 0:01:51]} 14. Qxd3 {[%clk 0:01:46]}  Qxb2 {[%clk 0:01:24]} 15. Rfa1 {[%clk 0:01:41]}  Qb6 {[%clk 0:01:21]} 16. e5 {[%clk 0:01:34]}  Nd5 {[%clk 0:01:15]} 17. exd6 {[%clk 0:01:22]}  exd6 {[%clk 0:01:09]} 18. Nf4 {[%clk 0:01:16]}  Ne7 {[%clk 0:00:47]} 19. c4 {[%clk 0:01:00]}  O-O {[%clk 0:00:40]} 20. c5 {[%clk 0:00:53]}  dxc5 {[%clk 0:00:39]} 21. dxc5 {[%clk 0:00:54]}  Qc7 {[%clk 0:00:39]} 22. R1a2 {[%clk 0:00:50]}  Na6 {[%clk 0:00:39]} 23. Qc4 {[%clk 0:00:32]}  Nb4 {[%clk 0:00:36]} 24. Rd2 {[%clk 0:00:31]}  Ned5 {[%clk 0:00:30]} 25. Nxd5 {[%clk 0:00:29]}  Nxd5 {[%clk 0:00:27]} 26. Bd4 {[%clk 0:00:29]}  Bxd4 {[%clk 0:00:22]} 27. Nxd4 {[%clk 0:00:26]}  Rab8 {[%clk 0:00:22]} 28. g3 {[%clk 0:00:25]}  Rfe8 {[%clk 0:00:18]} 29. Nxc6 {[%clk 0:00:24]}  Rb1+ {[%clk 0:00:16]} 30. Kh2 {[%clk 0:00:21]}  Qxc6 {[%clk 0:00:12]} 31. Qxd5 {[%clk 0:00:20]}  Qxd5 {[%clk 0:00:12]} 32. Rxd5 {[%clk 0:00:21]}  Re2 {[%clk 0:00:13]} 33. Kg2 {[%clk 0:00:21]}  Rbb2 {[%clk 0:00:12]} 34. Rf3 {[%clk 0:00:21]}  Rec2 {[%clk 0:00:11]} 35. Rd8+ {[%clk 0:00:20]}  Kg7 {[%clk 0:00:11]} 36. Rd7 {[%clk 0:00:20]}  a4 {[%clk 0:00:11]} 37. Rfxf7+ {[%clk 0:00:21]}  Kg8 {[%clk 0:00:12]} 38. Rg7+ {[%clk 0:00:20]}  Kf8 {[%clk 0:00:12]} 39. Rgf7+ {[%clk 0:00:20]}  Ke8 {[%clk 0:00:12]} 40. Rde7+ {[%clk 0:00:20]}  Kd8 {[%clk 0:00:12]} 41. Ra7 {[%clk 0:00:21]}  Rxc5 {[%clk 0:00:10]} 42. Rf8# {[%clk 0:00:21]} 1-0


[Site "https://www.chess.com"]

[Event "Titled Tuesday Blitz February 15 Early 2022"]
[White "Polster, Christian"]
[Black "Alavi, Sayed Javad"]
[WhiteFideId "12965081"]
[BlackFideId "12500607"]
[WhiteElo "2297"]
[BlackElo "2475"]
[Result "0-1"]
[Round "01"]
[TimeControl "180+1"]
[Date "2022.02.15"]
[WhiteClock "0:00:54"]
[BlackClock "0:01:38"]

1. e4 {[%clk 0:02:59]}  c6 {[%clk 0:02:59]} 2. Nc3 {[%clk 0:02:58]}  d5 {[%clk 0:02:59]} 3. Nf3 {[%clk 0:02:58]}  dxe4 {[%clk 0:03:00]} 4. Nxe4 {[%clk 0:02:59]}  Nf6 {[%clk 0:02:52]} 5. Nxf6+ {[%clk 0:02:59]}  exf6 {[%clk 0:02:53]} 6. d4 {[%clk 0:02:59]}  Bd6 {[%clk 0:02:54]} 7. Bd3 {[%clk 0:02:59]}  O-O {[%clk 0:02:52]} 8. O-O {[%clk 0:02:58]}  Bg4 {[%clk 0:02:52]} 9. h3 {[%clk 0:02:58]}  Bh5 {[%clk 0:02:51]} 10. Re1 {[%clk 0:02:59]}  Nd7 {[%clk 0:02:51]} 11. c4 {[%clk 0:02:59]}  a5 {[%clk 0:02:40]} 12. Be3 {[%clk 0:02:56]}  a4 {[%clk 0:02:40]} 13. Be2 {[%clk 0:02:52]}  a3 {[%clk 0:02:37]} 14. b3 {[%clk 0:02:38]}  Re8 {[%clk 0:02:14]} 15. c5 {[%clk 0:02:21]}  Bc7 {[%clk 0:02:10]} 16. b4 {[%clk 0:02:20]}  f5 {[%clk 0:02:06]} 17. Qb3 {[%clk 0:02:07]}  Nf6 {[%clk 0:01:54]} 18. Bg5 {[%clk 0:02:04]}  h6 {[%clk 0:01:49]} 19. Bxf6 {[%clk 0:02:03]}  Qxf6 {[%clk 0:01:50]} 20. Rad1 {[%clk 0:02:00]}  Re4 {[%clk 0:01:43]} 21. d5 {[%clk 0:01:09]}  cxd5 {[%clk 0:01:43]} 22. Qxd5 {[%clk 0:01:07]}  Rxb4 {[%clk 0:01:44]} 23. Nd4 {[%clk 0:00:54]}  Bxe2 {[%clk 0:01:39]} 24. Rxe2 {[%clk 0:00:54]}  Rd8 {[%clk 0:01:38]} 0-1


[Site "https://www.chess.com"]

[Event "Titled Tuesday Blitz February 15 Early 2022"]
[White "Redzisz, Michal"]
[Black "Tasev, Dejan"]
[WhiteFideId "21816107"]
[BlackFideId "936618"]
[WhiteElo "1961"]
[BlackElo "2253"]
[Result "0-1"]
[Round "01"]
[TimeControl "180+1"]
[Date "2022.02.15"]
[WhiteClock "0:00:01"]
[BlackClock "0:00:13"]

1. b4 {[%clk 0:02:59]}  Nf6 {[%clk 0:02:59]} 2. Bb2 {[%clk 0:02:59]}  e6 {[%clk 0:02:59]} 3. b5 {[%clk 0:02:59]}  d5 {[%clk 0:02:59]} 4. e3 {[%clk 0:02:58]}  g6 {[%clk 0:02:59]} 5. Nf3 {[%clk 0:02:59]}  Bg7 {[%clk 0:02:59]} 6. Be2 {[%clk 0:02:58]}  O-O {[%clk 0:02:59]} 7. O-O {[%clk 0:02:58]}  Nbd7 {[%clk 0:03:00]} 8. a4 {[%clk 0:02:57]}  a5 {[%clk 0:02:59]} 9. d4 {[%clk 0:02:48]}  b6 {[%clk 0:02:59]} 10. Nbd2 {[%clk 0:02:47]}  Bb7 {[%clk 0:02:59]} 11. Rc1 {[%clk 0:02:42]}  Rc8 {[%clk 0:02:58]} 12. c4 {[%clk 0:02:41]}  dxc4 {[%clk 0:02:55]} 13. Nxc4 {[%clk 0:02:42]}  Nd5 {[%clk 0:02:55]} 14. Ba3 {[%clk 0:02:30]}  Re8 {[%clk 0:02:54]} 15. Qb3 {[%clk 0:02:17]}  h6 {[%clk 0:02:44]} 16. Rfd1 {[%clk 0:02:16]}  g5 {[%clk 0:02:44]} 17. Bf1 {[%clk 0:02:01]}  g4 {[%clk 0:02:42]} 18. Nfe5 {[%clk 0:02:01]}  Nxe5 {[%clk 0:02:37]} 19. Nxe5 {[%clk 0:01:57]}  Qg5 {[%clk 0:02:29]} 20. Nc6 {[%clk 0:01:31]}  h5 {[%clk 0:02:17]} 21. e4 {[%clk 0:01:25]}  Nf4 {[%clk 0:01:58]} 22. Qe3 {[%clk 0:01:25]}  Bxc6 {[%clk 0:01:50]} 23. Rxc6 {[%clk 0:01:26]}  h4 {[%clk 0:01:40]} 24. g3 {[%clk 0:00:42]}  hxg3 {[%clk 0:01:38]} 25. hxg3 {[%clk 0:00:41]}  e5 {[%clk 0:01:15]} 26. gxf4 {[%clk 0:00:18]}  exf4 {[%clk 0:01:14]} 27. Qd3 {[%clk 0:00:17]}  Rcd8 {[%clk 0:01:02]} 28. d5 {[%clk 0:00:13]}  f5 {[%clk 0:00:52]} 29. exf5 {[%clk 0:00:12]}  g3 {[%clk 0:00:52]} 30. fxg3 {[%clk 0:00:12]}  Re3 {[%clk 0:00:52]} 31. Rg6 {[%clk 0:00:08]}  Qh5 {[%clk 0:00:35]} 32. Qd4 {[%clk 0:00:05]}  Rxg3+ {[%clk 0:00:33]} 33. Rxg3 {[%clk 0:00:05]}  fxg3 {[%clk 0:00:33]} 34. Qd2 {[%clk 0:00:05]}  Rf8 {[%clk 0:00:18]} 35. Qg2 {[%clk 0:00:03]}  Rxf5 {[%clk 0:00:16]} 36. d6 {[%clk 0:00:03]}  Qxd1 {[%clk 0:00:15]} 37. Qxg3 {[%clk 0:00:01]}  Qd4+ {[%clk 0:00:13]} 0-1


[Site "https://www.chess.com"]

[Event "Titled Tuesday Blitz February 15 Early 2022"]
[White "Rojas Salas, Steven"]
[Black "Chigaev, Maksim"]
[WhiteFideId "3819434"]
[BlackFideId "4108116"]
[WhiteElo "2075"]
[BlackElo "2502"]
[Result "0-1"]
[Round "01"]
[TimeControl "180+1"]
[Date "2022.02.15"]
[WhiteClock "0:00:03"]
[BlackClock "0:00:05"]

1. d4 {[%clk 0:02:56]}  d6 {[%clk 0:02:59]} 2. Nf3 {[%clk 0:02:54]}  g6 {[%clk 0:02:58]} 3. c4 {[%clk 0:02:39]}  Bg7 {[%clk 0:02:58]} 4. Nc3 {[%clk 0:02:37]}  Nf6 {[%clk 0:02:58]} 5. g3 {[%clk 0:02:26]}  O-O {[%clk 0:02:56]} 6. Bg2 {[%clk 0:02:26]}  c5 {[%clk 0:02:56]} 7. O-O {[%clk 0:02:21]}  Nc6 {[%clk 0:02:56]} 8. dxc5 {[%clk 0:01:53]}  dxc5 {[%clk 0:02:56]} 9. Be3 {[%clk 0:01:54]}  b6 {[%clk 0:02:57]} 10. Qxd8 {[%clk 0:01:52]}  Rxd8 {[%clk 0:02:56]} 11. Rad1 {[%clk 0:01:53]}  Bd7 {[%clk 0:02:55]} 12. h3 {[%clk 0:01:42]}  Be8 {[%clk 0:02:48]} 13. Nd2 {[%clk 0:01:32]}  Rac8 {[%clk 0:02:39]} 14. b3 {[%clk 0:01:19]}  Nd4 {[%clk 0:02:35]} 15. Nde4 {[%clk 0:01:08]}  Nxe4 {[%clk 0:02:21]} 16. Bxe4 {[%clk 0:01:09]}  e6 {[%clk 0:02:15]} 17. Rfe1 {[%clk 0:01:02]}  Nxb3 {[%clk 0:02:07]} 18. axb3 {[%clk 0:00:59]}  Bxc3 {[%clk 0:02:06]} 19. Rxd8 {[%clk 0:00:56]}  Rxd8 {[%clk 0:02:06]} 20. Rc1 {[%clk 0:00:57]}  Bf6 {[%clk 0:01:58]} 21. h4 {[%clk 0:00:53]}  h5 {[%clk 0:01:57]} 22. Kf1 {[%clk 0:00:52]}  Kg7 {[%clk 0:01:43]} 23. Kg2 {[%clk 0:00:49]}  a5 {[%clk 0:01:34]} 24. Rb1 {[%clk 0:00:48]}  Bc3 {[%clk 0:01:27]} 25. Kf3 {[%clk 0:00:43]}  f5 {[%clk 0:01:20]} 26. Bc2 {[%clk 0:00:32]}  Bc6+ {[%clk 0:01:20]} 27. Kf4 {[%clk 0:00:32]}  Kf6 {[%clk 0:01:01]} 28. Bc1 {[%clk 0:00:32]}  e5+ {[%clk 0:00:57]} 29. Ke3 {[%clk 0:00:32]}  Bd4+ {[%clk 0:00:53]} 30. Kd2 {[%clk 0:00:31]}  Bxf2+ {[%clk 0:00:54]} 31. Kc3 {[%clk 0:00:31]}  Bd4+ {[%clk 0:00:50]} 32. Kd2 {[%clk 0:00:32]}  Bf2+ {[%clk 0:00:45]} 33. Kc3 {[%clk 0:00:32]}  f4 {[%clk 0:00:26]} 34. gxf4 {[%clk 0:00:32]}  Bd4+ {[%clk 0:00:26]} 35. Kd3 {[%clk 0:00:29]}  e4+ {[%clk 0:00:18]} 36. Kd2 {[%clk 0:00:29]}  Bf2+ {[%clk 0:00:17]} 37. Kc3 {[%clk 0:00:29]}  Bxh4 {[%clk 0:00:13]} 38. Be3 {[%clk 0:00:19]}  Kf5 {[%clk 0:00:13]} 39. Rh1 {[%clk 0:00:19]}  Bf6+ {[%clk 0:00:13]} 40. Bd4 {[%clk 0:00:18]}  Bxd4+ {[%clk 0:00:13]} 41. Kd2 {[%clk 0:00:18]}  Be5+ {[%clk 0:00:13]} 42. Ke3 {[%clk 0:00:18]}  Bxf4+ {[%clk 0:00:13]} 43. Kf2 {[%clk 0:00:19]}  Rd2 {[%clk 0:00:12]} 44. Bb1 {[%clk 0:00:19]}  Kf6 {[%clk 0:00:12]} 45. Rg1 {[%clk 0:00:19]}  e3+ {[%clk 0:00:12]} 46. Ke1 {[%clk 0:00:20]}  g5 {[%clk 0:00:12]} 47. Bd3 {[%clk 0:00:13]}  h4 {[%clk 0:00:12]} 48. b4 {[%clk 0:00:11]}  axb4 {[%clk 0:00:10]} 49. Rf1 {[%clk 0:00:09]}  h3 {[%clk 0:00:10]} 50. Bb1 {[%clk 0:00:02]}  h2 {[%clk 0:00:09]} 51. Be4 {[%clk 0:00:03]}  h1=Q {[%clk 0:00:05]} 0-1


[Site "https://www.chess.com"]

[Event "Titled Tuesday Blitz February 15 Early 2022"]
[White "Rustemov, Alexander"]
[Black "Eynullayev, Atilla"]
[WhiteFideId "4119002"]
[BlackFideId "13413570"]
[WhiteElo "2792"]
[BlackElo "1979"]
[Result "1-0"]
[Round "01"]
[TimeControl "180+1"]
[Date "2022.02.15"]
[WhiteClock "0:00:07"]
[BlackClock "0:00:08"]

1. d4 {[%clk 0:03:00]}  Nf6 {[%clk 0:02:59]} 2. c4 {[%clk 0:03:00]}  e6 {[%clk 0:03:00]} 3. Nf3 {[%clk 0:02:54]}  b6 {[%clk 0:02:59]} 4. a3 {[%clk 0:02:54]}  Bb7 {[%clk 0:02:57]} 5. Nc3 {[%clk 0:02:54]}  d5 {[%clk 0:02:57]} 6. Bg5 {[%clk 0:02:54]}  Be7 {[%clk 0:02:55]} 7. Bxf6 {[%clk 0:02:54]}  Bxf6 {[%clk 0:02:55]} 8. cxd5 {[%clk 0:02:55]}  exd5 {[%clk 0:02:55]} 9. Qa4+ {[%clk 0:02:56]}  Bc6 {[%clk 0:02:54]} 10. Qc2 {[%clk 0:02:52]}  O-O {[%clk 0:02:52]} 11. g3 {[%clk 0:02:51]}  Bb7 {[%clk 0:02:50]} 12. Bg2 {[%clk 0:02:51]}  Nd7 {[%clk 0:02:39]} 13. O-O {[%clk 0:02:50]}  a6 {[%clk 0:02:36]} 14. Rfd1 {[%clk 0:02:48]}  Re8 {[%clk 0:02:35]} 15. Rac1 {[%clk 0:02:46]}  Qe7 {[%clk 0:02:27]} 16. e3 {[%clk 0:02:42]}  Rac8 {[%clk 0:02:26]} 17. b4 {[%clk 0:02:41]}  c5 {[%clk 0:01:59]} 18. dxc5 {[%clk 0:02:33]}  Bxc3 {[%clk 0:01:52]} 19. Qxc3 {[%clk 0:02:32]}  bxc5 {[%clk 0:01:52]} 20. bxc5 {[%clk 0:02:31]}  Rxc5 {[%clk 0:01:49]} 21. Qb2 {[%clk 0:02:16]}  Rb5 {[%clk 0:01:42]} 22. Qa1 {[%clk 0:02:12]}  Nc5 {[%clk 0:01:35]} 23. Nd4 {[%clk 0:02:11]}  Nb3 {[%clk 0:01:35]} 24. Nxb3 {[%clk 0:02:05]}  Rxb3 {[%clk 0:01:36]} 25. Rc3 {[%clk 0:02:02]}  Rxc3 {[%clk 0:01:26]} 26. Qxc3 {[%clk 0:02:02]}  Rc8 {[%clk 0:01:22]} 27. Qb4 {[%clk 0:01:54]}  Qd7 {[%clk 0:00:29]} 28. h4 {[%clk 0:01:37]}  g6 {[%clk 0:00:27]} 29. Qd4 {[%clk 0:01:33]}  Qe7 {[%clk 0:00:24]} 30. Bf1 {[%clk 0:01:12]}  Rc2 {[%clk 0:00:21]} 31. a4 {[%clk 0:00:56]}  Qe6 {[%clk 0:00:21]} 32. Bd3 {[%clk 0:00:46]}  Ra2 {[%clk 0:00:20]} 33. Rb1 {[%clk 0:00:45]}  Qc6 {[%clk 0:00:16]} 34. Qb6 {[%clk 0:00:34]}  Ra1 {[%clk 0:00:07]} 35. Qxc6 {[%clk 0:00:26]}  Rxb1+ {[%clk 0:00:07]} 36. Bxb1 {[%clk 0:00:27]}  Bxc6 {[%clk 0:00:08]} 37. a5 {[%clk 0:00:27]}  Bb5 {[%clk 0:00:08]} 38. Kg2 {[%clk 0:00:25]}  Kf8 {[%clk 0:00:09]} 39. Kf3 {[%clk 0:00:26]}  Ke7 {[%clk 0:00:10]} 40. Kf4 {[%clk 0:00:26]}  Ke6 {[%clk 0:00:10]} 41. g4 {[%clk 0:00:22]}  f6 {[%clk 0:00:10]} 42. g5 {[%clk 0:00:22]}  fxg5+ {[%clk 0:00:10]} 43. hxg5 {[%clk 0:00:22]}  Bc4 {[%clk 0:00:10]} 44. Bc2 {[%clk 0:00:20]}  Kd6 {[%clk 0:00:10]} 45. f3 {[%clk 0:00:11]}  Ke6 {[%clk 0:00:10]} 46. Ba4 {[%clk 0:00:10]}  Kd6 {[%clk 0:00:10]} 47. Bd1 {[%clk 0:00:08]}  Ke6 {[%clk 0:00:10]} 48. Bc2 {[%clk 0:00:09]}  Kd6 {[%clk 0:00:10]} 49. Kg3 {[%clk 0:00:09]}  Ke5 {[%clk 0:00:11]} 50. f4+ {[%clk 0:00:08]}  Ke6 {[%clk 0:00:11]} 51. Kf2 {[%clk 0:00:09]}  Kd6 {[%clk 0:00:08]} 52. Ke1 {[%clk 0:00:07]}  Ke6 {[%clk 0:00:08]} 53. Kd2 {[%clk 0:00:08]}  Bb5 {[%clk 0:00:08]} 54. Kc3 {[%clk 0:00:08]}  Bc4 {[%clk 0:00:08]} 55. Kd4 {[%clk 0:00:09]}  Bb5 {[%clk 0:00:08]} 56. Bb3 {[%clk 0:00:09]}  Bc6 {[%clk 0:00:08]} 57. e4 {[%clk 0:00:09]}  Kd6 {[%clk 0:00:08]} 58. Bxd5 {[%clk 0:00:08]}  Be8 {[%clk 0:00:08]} 59. Bc4 {[%clk 0:00:07]} 1-0


[Site "https://www.chess.com"]

[Event "Titled Tuesday Blitz February 15 Early 2022"]
[White "Sadovsky, Artem"]
[Black "Osiecki, Stanislaw"]
[WhiteFideId "4155840"]
[BlackFideId "1102990"]
[WhiteElo "2369"]
[BlackElo "2127"]
[Result "1-0"]
[Round "01"]
[TimeControl "180+1"]
[Date "2022.02.15"]
[WhiteClock "0:02:40"]
[BlackClock "0:00:39"]

1. e4 {[%clk 0:03:00]}  e6 {[%clk 0:02:59]} 2. Nf3 {[%clk 0:02:58]}  d5 {[%clk 0:02:59]} 3. Nc3 {[%clk 0:02:59]}  d4 {[%clk 0:02:59]} 4. Ne2 {[%clk 0:02:59]}  c5 {[%clk 0:02:59]} 5. c3 {[%clk 0:02:59]}  dxc3 {[%clk 0:03:00]} 6. bxc3 {[%clk 0:02:58]}  g6 {[%clk 0:03:00]} 7. d4 {[%clk 0:02:58]}  cxd4 {[%clk 0:02:59]} 8. cxd4 {[%clk 0:02:59]}  Bg7 {[%clk 0:02:59]} 9. Be3 {[%clk 0:02:58]}  Ne7 {[%clk 0:02:59]} 10. Nc3 {[%clk 0:02:58]}  O-O {[%clk 0:02:59]} 11. h4 {[%clk 0:02:58]}  h5 {[%clk 0:02:57]} 12. Be2 {[%clk 0:02:56]}  Nbc6 {[%clk 0:02:57]} 13. O-O {[%clk 0:02:56]}  b6 {[%clk 0:02:57]} 14. Rc1 {[%clk 0:02:55]}  Bb7 {[%clk 0:02:56]} 15. d5 {[%clk 0:02:55]}  exd5 {[%clk 0:02:56]} 16. exd5 {[%clk 0:02:56]}  Nb4 {[%clk 0:02:51]} 17. d6 {[%clk 0:02:56]}  Nf5 {[%clk 0:02:51]} 18. Bg5 {[%clk 0:02:56]}  Qxd6 {[%clk 0:02:46]} 19. Qb3 {[%clk 0:02:51]}  a5 {[%clk 0:02:30]} 20. a3 {[%clk 0:02:50]}  Na6 {[%clk 0:02:08]} 21. Rfd1 {[%clk 0:02:50]}  Qb8 {[%clk 0:01:53]} 22. Qxb6 {[%clk 0:02:49]}  Bxf3 {[%clk 0:01:51]} 23. Qxb8 {[%clk 0:02:49]}  Raxb8 {[%clk 0:01:49]} 24. Bxf3 {[%clk 0:02:50]}  Rb3 {[%clk 0:01:45]} 25. Nd5 {[%clk 0:02:49]}  Rxa3 {[%clk 0:01:44]} 26. Ne7+ {[%clk 0:02:49]}  Kh7 {[%clk 0:01:43]} 27. Nxf5 {[%clk 0:02:48]}  gxf5 {[%clk 0:01:43]} 28. Be7 {[%clk 0:02:49]}  Rxf3 {[%clk 0:01:34]} 29. gxf3 {[%clk 0:02:50]}  Re8 {[%clk 0:01:34]} 30. Rd7 {[%clk 0:02:49]}  Nb4 {[%clk 0:01:21]} 31. Bxb4 {[%clk 0:02:47]}  axb4 {[%clk 0:01:21]} 32. Rxf7 {[%clk 0:02:48]}  b3 {[%clk 0:01:21]} 33. Rb1 {[%clk 0:02:45]}  Rb8 {[%clk 0:01:19]} 34. Rxf5 {[%clk 0:02:44]}  b2 {[%clk 0:01:11]} 35. Rxh5+ {[%clk 0:02:44]}  Kg6 {[%clk 0:01:11]} 36. Rg5+ {[%clk 0:02:42]}  Kh6 {[%clk 0:01:10]} 37. Kg2 {[%clk 0:02:42]}  Rb4 {[%clk 0:01:07]} 38. Kg3 {[%clk 0:02:41]}  Bf6 {[%clk 0:01:06]} 39. Rg4 {[%clk 0:02:41]}  Be5+ {[%clk 0:00:58]} 40. Kh3 {[%clk 0:02:40]}  Rb3 {[%clk 0:00:57]} 41. Re4 {[%clk 0:02:40]}  Rxf3+ {[%clk 0:00:53]} 42. Kg4 {[%clk 0:02:40]}  Rxf2 {[%clk 0:00:39]} 43. Rxe5 {[%clk 0:02:40]} 1-0


[Site "https://www.chess.com"]

[Event "Titled Tuesday Blitz February 15 Early 2022"]
[White "Sahil, Tickoo"]
[Black "Kretov, Evgenij"]
[WhiteFideId "5019710"]
[BlackFideId "4167821"]
[WhiteElo "2099"]
[BlackElo "2303"]
[Result "0-1"]
[Round "01"]
[TimeControl "180+1"]
[Date "2022.02.15"]
[WhiteClock "0:00:29"]
[BlackClock "0:02:00"]

1. d4 {[%clk 0:02:59]}  Nf6 {[%clk 0:02:58]} 2. Bf4 {[%clk 0:02:57]}  d6 {[%clk 0:02:57]} 3. Nf3 {[%clk 0:02:55]}  g6 {[%clk 0:02:56]} 4. e3 {[%clk 0:02:54]}  Bg7 {[%clk 0:02:54]} 5. h3 {[%clk 0:02:53]}  O-O {[%clk 0:02:54]} 6. Nbd2 {[%clk 0:02:50]}  Nbd7 {[%clk 0:02:54]} 7. c3 {[%clk 0:02:46]}  Re8 {[%clk 0:02:53]} 8. Bh2 {[%clk 0:02:44]}  e5 {[%clk 0:02:53]} 9. dxe5 {[%clk 0:02:40]}  Nxe5 {[%clk 0:02:51]} 10. Be2 {[%clk 0:02:38]}  Bf5 {[%clk 0:02:48]} 11. Nxe5 {[%clk 0:02:26]}  dxe5 {[%clk 0:02:48]} 12. Nc4 {[%clk 0:02:22]}  Nd5 {[%clk 0:02:41]} 13. O-O {[%clk 0:02:17]}  c6 {[%clk 0:02:37]} 14. a4 {[%clk 0:02:05]}  Qe7 {[%clk 0:02:32]} 15. Bg4 {[%clk 0:01:50]}  Rad8 {[%clk 0:02:17]} 16. Qf3 {[%clk 0:00:56]}  Bd3 {[%clk 0:02:04]} 17. Na5 {[%clk 0:00:43]}  Bxf1 {[%clk 0:02:02]} 18. Rxf1 {[%clk 0:00:42]}  f5 {[%clk 0:02:02]} 19. c4 {[%clk 0:00:29]}  fxg4 {[%clk 0:02:00]} 0-1


[Site "https://www.chess.com"]